Workbook

Sheet Q1_Q6
B3: National 4 Numeracy Practice
B6: ="Q1. Emma-Louise bought a new lamp for her room. The price was £"&AK6&" + VAT." -> Q1. Emma-Louise bought a new lamp for her room. The price was £40 + VAT. | AK6: =ROUND(RAND()*(50-2)+2,0)*10 -> 40
D8: VAT is charged at 20%.
D11: What was the total price? | P11: £ | V11: Money 1.1 | AK11: =0.2*AK6+AK6 -> 48
B21: ="Q2. An empty tin has a weight of "&AK21&" g." -> Q2. An empty tin has a weight of 320 g. | AK21: =ROUND(RAND()*(50-2)+2,0)*10 -> 320
C22: =" When "&AK22&" marbles are put into it, it has a weight of "&AK24&" g." -> When 30 marbles are put into it, it has a weight of 1040 g. | AK22: =ROUND(RAND()*(5-2)+2,0)*10 -> 30
AK23: =ROUND(RAND()*(30-11)+11,0) -> 24
AK24: =AK23*AK22+AK21 -> 1040
D26: What is the weight of one marble ? | Z26: g | AB26: Measure 1.1 | AK26: =AK23 -> 24
B36: ="Q3. Daniel is going to "&AN41&" on holiday." -> Q3. Daniel is going to Holland on holiday. | AK36: =ROUND(RAND()*(20-3)+3,0)*50 -> 350 | AL36: =ROUND(RAND()*(5-1)+1,0) -> 3 | AM36: 1 | AN36: France
AK37: =ROUND(RAND()*(2-1)+1,2) -> 1.97 | AM37: 2 | AN37: Belgium
C38: =" How much currency will he get for £ "&AK36 -> How much currency will he get for £ 350 | AM38: 3 | AN38: Holland
C39: =" when the exchange rate is "&AK37&" euros to a pound?" -> when the exchange rate is 1.97 euros to a pound? | AK39: =AK36*AK37 -> 689.5 | AM39: 4 | AN39: Germany
AM40: 5 | AN40: Spain
Z41: € | AB41: Money 1.1 | AK41: =AK39 -> 689.5 | AN41: =LOOKUP(AL36,AM36:AM40,AN36:AN40) -> Holland
AK50: =CONCATENATE(AK55,":",AL55) -> 16:15 | AM50: =CONCATENATE(AM55,":",AN55) -> 21:20
B51: ="Q4. Complete the following table which shows departure and arrival times" -> Q4. Complete the following table which shows departure and arrival times | AK51: =CONCATENATE(AK54,":",AL54) -> 13:20 | AM51: =CONCATENATE(AM54,":",AN54) -> 19:15
C52: for different bus journeys. | AK52: =CONCATENATE("0",AK53,":",AL53) -> 01:40 | AM52: =CONCATENATE("0",AM53,":",AN53) -> 04:50
AK53: =ROUND(RAND()*(2-1)+1,0) -> 1 | AL53: =ROUND(RAND()*(11-2)+2,0)*5 -> 40 | AM53: =ROUND(RAND()*(5-4)+4,0) -> 4 | AN53: =ROUND(RAND()*(11-2)+2,0)*5 -> 50
D54: Depart | K54: Arrive | R54: Time Taken | AK54: =ROUND(RAND()*(15-13)+13,0) -> 13 | AL54: =ROUND(RAND()*(11-2)+2,0)*5 -> 20 | AM54: =ROUND(RAND()*(19-17)+17,0) -> 19 | AN54: =ROUND(RAND()*(11-2)+2,0)*5 -> 15
D55: =AK56 -> 01:40 | K55: =AL56 -> 04:50 | T55: hrs | X55: mins | AK55: =ROUND(RAND()*(18-13)+13,0) -> 16 | AL55: =ROUND(RAND()*(11-2)+2,0)*5 -> 15 | AM55: =ROUND(RAND()*(23-20)+20,0) -> 21 | AN55: =ROUND(RAND()*(11-2)+2,0)*5 -> 20
D56: =AK57 -> 13:20 | R56: =AN57 -> 5 | T56: hrs | V56: =AO57 -> 55 | X56: mins | AK56: =AK52 -> 01:40 | AL56: =AM52 -> 04:50 | AM56: =AL56-AK56 -> 03:10:00 | AN56: =HOUR(AM56) -> 3 | AO56: =MINUTE(AM56) -> 10
K57: =AL58 -> 21:20 | R57: =AN58 -> 5 | T57: hrs | V57: =AO58 -> 5 | X57: mins | AC57: Time 1.1 | AK57: =AK51 -> 13:20 | AL57: =AM51 -> 19:15 | AM57: =AL57-AK57 -> 05:55:00 | AN57: =HOUR(AM57) -> 5 | AO57: =MINUTE(AM57) -> 55
AK58: =AK50 -> 16:15 | AL58: =AM50 -> 21:20 | AM58: =AL58-AK58 -> 05:05:00 | AN58: 5 | AO58: 5
AK59: =AM51 -> 19:15
AK60: =AK58 -> 16:15
B69: ="Q5. The diagram shows a room which is made up of two rectangles." -> Q5. The diagram shows a room which is made up of two rectangles. | AK69: =ROUND(RAND()*(5-2)+2,0) -> 4 | AL69: =CONCATENATE(AK69," m") -> 4 m
C70: =" The owner bought a "&AK73&" m roll of decorative border which is to" -> The owner bought a 59 m roll of decorative border which is to | AK70: =AK69*ROUND(RAND()*(4-2)+2,0) -> 8 | AL70: =CONCATENATE(AK70," m") -> 8 m
C71: go all round the walls of the room near the ceiling. | AK71: =2*AK70 -> 16 | AL71: 16 m
AK72: =AK69+AK69+AK69+AK70+AK70+AK71+(AK71-AK69) -> 56 | AL72: =ROUND(RAND()*(1-0)+0,0) -> 1
M73: =AL71 -> 16 m | AK73: =IF(AL72=1,AK72+ROUND(RAND()*(5-1)+1,0),AK72-ROUND(RAND()*(5-1)+1,0)) -> 59
W74: =AL69 -> 4 m | AK74: =IF(AL72=0,"No","Yes") -> Yes
T77: =AL70 -> 8 m
P81: =W74 -> 4 m
D83: Is the roll long enough for the room? Justify your answer by calculation.
P85: Answer : | AC85: Measure 1.1
B95: ="Q6. A train travels at a constant speed of "&AK96&" mph for "&AK95&" minutes." -> Q6. A train travels at a constant speed of 60 mph for 15 minutes. | AK95: =ROUND(RAND()*(3-1)+1,0)*15 -> 15
AK96: =ROUND(RAND()*(14-3)+3,0)*6 -> 60
C98: =" How far does the train travel in this time?" -> How far does the train travel in this time?
AC99: Time /
Z100: miles | AC100: Measure 1.1 | AK100: =AK96*AK95/60 -> 15

Sheet Q7_Q13
B2: National 4 Numeracy Practice
AK3: =ROUND(RAND()*(1-0)+0,0) -> 1
AK4: =ROUND(RAND()*(8-2)+2,0) -> 3
B5: ="Q7. Jack & Victor split £ "&AK7&" in the ratio of "&AK4&" : "&AK5&"." -> Q7. Jack & Victor split £ 165 in the ratio of 3 : 2. | AK5: =IF(AK3=0,AK4+1,AK4-1) -> 2
AK6: =AK4+AK5 -> 5
D7: ="Victor gets £"&AK10&" . Is this correct justify your answer by calculation." -> Victor gets £67 . Is this correct justify your answer by calculation. | AK7: =ROUND(RAND()*(58-6)+6,0)*AK6 -> 165
AK8: =AK7/AK6 -> 33
AK9: =AK8*AK4 -> 99
L10: Answer = | AK10: =IF(AK3=0,AK8*AK5,AK8*AK5+1) -> 67
AK11: =IF(AK3=0,"Yes","No") -> No
B20: ="Q8. A gas is cooled from "&AK20&" °C to "&AK21&" °C." -> Q8. A gas is cooled from 15 °C to -8 °C. | AK20: =ROUND(RAND()*(20-8)+8,0) -> 15
AK21: =ROUND(RAND()*((-8)-(-25))+(-25),0) -> -8
C22: By how many degrees has its temperature dropped?
P24: Dropped by = | Z24: oC | AK24: =AK20-AK21 -> 23
B34: ="Q9. How much more petrol is needed to fill the petrol can to 4 litres ?." -> Q9. How much more petrol is needed to fill the petrol can to 4 litres ?.
S35: =ROUND(RAND()*(3.6-0.4)+0.4,1) -> 2.3
Z44: litres | AK44: =4-S35 -> 1.7
B54: ="Q10. Two shops are selling the same model of Laptop. " -> Q10. Two shops are selling the same model of Laptop. | AK54: =ROUND(RAND()*(6-3)+3,0)*50 -> 150
D55: They are offering these for sale with different deals. | AK55: =IF(AK53=0,AK54-50,AK54+50) -> 100
AK56: =ROUND(RAND()*(60-40)+40,1) -> 54.3
E57: Shop A | S57: Shop B | AK57: =AK56+ROUND(RAND()*(10-7)+7,1) -> 62.1
AK58: =AK54+6*AK56 -> 475.8
F59: ="Deposit £"&TEXT(AK54,0) -> Deposit £150 | W59: ="Deposit £"&TEXT(AK55,0) -> Deposit £100 | AK59: =AK55+6*AK57 -> 472.6
AK60: =IF(AK59>AK58,"A",IF(AK59=AK58,"SAME","B")) -> B
F61: ="6 payments of £"&TEXT(AK56,"0.00") -> 6 payments of £54.30 | W61: ="6 payments of £"&TEXT(AK57,"0.00") -> 6 payments of £62.10
D63: Which shop has the cheaper deal?
D64: Justify your answer by calculation. | V64: Shop
T66: ( Answer A , B or SAME )
B76: ="Q11. Measure the length of the radius and the size of the minor angle shaded grey." -> Q11. Measure the length of the radius and the size of the minor angle shaded grey. | AK76: A | AL76: =ROUND(RAND()*(34-8)+8,0)*5 -> 95
AK77: B | AL77: =360-AL76 -> 265
S81: Length = | AB81: cm | AK81: 1.5
S83: Angle ABC = | AB83: o
AK88: =ROUND(RAND()*(25-14)+14,0)*10 -> 190
AK89: =AK88/2+ROUND(RAND()*(3-1)+1,0)*10 -> 115
B90: ="Q12. A school group of "&AK94&" students are planning to travel to an event using hired buses." -> Q12. A school group of 419 students are planning to travel to an event using hired buses. | AK90: =ROUND(RAND()*(80-70)+70,0) -> 76 | AL90: =ROUND(RAND()*(5-2)+2,0) -> 4 | AM90: =IF(AK97>AK91,AK96+1,AK96) -> 6
AK91: =ROUND(RAND()*(30-20)+20,0) -> 23 | AL91: =ROUND(RAND()*(5-2)+2,0) -> 5 | AM91: =IF(AK97<=AK91,1,0) -> 0
C92: A bus company offers two sizes of bus: | AK92: =AK90*AL90 -> 304 | AM92: =TEXT(AM91,"0") -> 0
AK93: =AK91*AL91 -> 115 | AM93: =TEXT(AM90,"0") -> 6
C94: ="Size A "&AK90&" seats Price £ "&AK88&"." -> Size A 76 seats Price £ 190. | AK94: =AK92+AK93 -> 419
C95: ="Size B "&AK91&" seats Price £ "&AK89&"." -> Size B 23 seats Price £ 115. | AK95: =AK94/AK90 -> 5.513157895
AK96: =TRUNC(AK95) -> 5
C97: The group wants to pay the lowest total hire charge available. | AK97: =AK94-(AK90*AK96) -> 39
C99: How many buses of each size should they hire? | X99: A | AC99: B
AK100: =AK88*AM90+AK89*AM91 -> 1140
C101: How much will this cost? | W101: £
AO109: 1 | AP109: 2 | AQ109: 3 | AR109: 4 | AS109: 5
AM110: =ROUND(RAND()*(5-1)+1,0) -> 2 | AO110: Scotland | AP110: Italy | AQ110: Germany | AR110: France | AS110: Sweden | AT110: Total
B111: ="Q13. A survey of a beach resort showed that there were a total of "&AM111&" visitors" -> Q13. A survey of a beach resort showed that there were a total of 2088 visitors | AM111: =72*ROUND(RAND()*(50-11)+11,0) -> 2088 | AN111: 1 | AO111: =2*ROUND(RAND()*(9-5)+5,0)/72 -> 0.1666666667 | AP111: =ROUND(RAND()*(9-5)+5,0)/72 -> 0.08333333333 | AQ111: =2*ROUND(RAND()*(9-5)+5,0)/72 -> 0.1666666667 | AR111: =2*ROUND(RAND()*(9-5)+5,0)/72 -> 0.2222222222 | AS111: =1-SUM(AO111:AR111) -> 0.3611111111 | AT111: =SUM(AO111:AS111) -> 1
D112: ="from a variety of countries." -> from a variety of countries. | AM112: =AN137 -> 203 | AN112: 2 | AO112: =2*ROUND(RAND()*(9-5)+5,0)/72 -> 0.1944444444 | AP112: =ROUND(RAND()*(9-5)+5,0)/72 -> 0.09722222222 | AQ112: =2*ROUND(RAND()*(9-5)+5,0)/72 -> 0.1944444444 | AR112: 0.25 | AS112: =1-SUM(AO112:AR112) -> 0.2638888889 | AT112: =SUM(AO112:AS112) -> 1
D113: ="The diagram below shows the proportion (in degrees) of visitors that came from " -> The diagram below shows the proportion (in degrees) of visitors that came from | AM113: =AN116 -> Italy | AN113: 3 | AO113: 0.25 | AP113: 0.09722222222 | AQ113: 0.1388888889 | AR113: 0.25 | AS113: 0.2638888889 | AT113: 1
D114: ="each country." -> each country. | AN114: 4 | AO114: 0.1944444444 | AP114: 0.09722222222 | AQ114: 0.1666666667 | AR114: 0.1944444444 | AS114: 0.3472222222 | AT114: 1
AN115: 5 | AO115: 0.1666666667 | AP115: 0.06944444444 | AQ115: 0.1944444444 | AR115: 0.25 | AS115: 0.3194444444 | AT115: 1
D116: ="How many visitors were there from "&AM113& "?" -> How many visitors were there from Italy? | W116: visitors | AN116: =LOOKUP($AM$110,$AO$109:$AS$109,AO110:AS110) -> Italy | AO116: =LOOKUP($AM$110,$AN$111:$AN$115,AO111:AO115) -> 0.1944444444 | AP116: =LOOKUP($AM$110,$AN$111:$AN$115,AP111:AP115) -> 0.09722222222 | AQ116: =LOOKUP($AM$110,$AN$111:$AN$115,AQ111:AQ115) -> 0.1944444444 | AR116: =LOOKUP($AM$110,$AN$111:$AN$115,AR111:AR115) -> 0.25 | AS116: =LOOKUP($AM$110,$AN$111:$AN$115,AS111:AS115) -> 0.2638888889 | AT116: =LOOKUP($AM$110,$AN$111:$AN$115,AT111:AT115) -> 1
AO118: 1 | AP118: 2 | AQ118: 3 | AR118: 4 | AS118: 5
AM119: =AM110 -> 2 | AO119: Scotland | AP119: Italy | AQ119: Germany | AR119: France | AS119: Sweden | AT119: Total
AN120: 1 | AO120: =AO111/$AT$111*360 -> 60 | AP120: =AP111/$AT$111*360 -> 30 | AQ120: 60 | AR120: 80 | AS120: 130 | AT120: =SUM(AO120:AS120) -> 360
AN121: 2 | AO121: =AO112/$AT$111*360 -> 70 | AP121: 35 | AQ121: 70 | AR121: 90 | AS121: 95 | AT121: =SUM(AO121:AS121) -> 360
AN122: 3 | AO122: =AO113/$AT$111*360 -> 90 | AP122: 35 | AQ122: 50 | AR122: 90 | AS122: 95 | AT122: 360
AN123: 4 | AO123: =AO114/$AT$111*360 -> 70 | AP123: 35 | AQ123: 60 | AR123: 70 | AS123: 125 | AT123: 360
AN124: 5 | AO124: =AO115/$AT$111*360 -> 60 | AP124: 25 | AQ124: 70 | AR124: 90 | AS124: 115 | AT124: 360
AN125: =LOOKUP($AM$110,$AO$109:$AS$109,AO119:AS119) -> Italy | AO125: =LOOKUP($AM$110,$AN$111:$AN$115,AO120:AO124) -> 70 | AP125: =LOOKUP($AM$110,$AN$111:$AN$115,AP120:AP124) -> 35 | AQ125: =LOOKUP($AM$110,$AN$111:$AN$115,AQ120:AQ124) -> 70 | AR125: =LOOKUP($AM$110,$AN$111:$AN$115,AR120:AR124) -> 90 | AS125: =LOOKUP($AM$110,$AN$111:$AN$115,AS120:AS124) -> 95 | AT125: =LOOKUP($AM$110,$AN$111:$AN$115,AT120:AT124) -> 360
AM127: =AM110 -> 2 | AO127: Scotland | AP127: Italy | AQ127: Germany | AR127: France | AS127: Sweden | AT127: Total
AN128: 1 | AO128: =AO111*$AM$111 -> 348 | AP128: =AP111*$AM$111 -> 174 | AQ128: 348 | AR128: 464 | AS128: 754 | AT128: =SUM(AO128:AS128) -> 2088
AN129: 2 | AO129: =AO112*$AM$111 -> 406 | AP129: 203 | AQ129: 406 | AR129: 522 | AS129: 551 | AT129: =SUM(AO129:AS129) -> 2088
AN130: 3 | AO130: =AO113*$AM$111 -> 522 | AP130: 203 | AQ130: 290 | AR130: 522 | AS130: 551 | AT130: 2088
AN131: 4 | AO131: =AO114*$AM$111 -> 406 | AP131: 203 | AQ131: 348 | AR131: 406 | AS131: 725 | AT131: 2088
AN132: 5 | AO132: =AO115*$AM$111 -> 348 | AP132: 145 | AQ132: 406 | AR132: 522 | AS132: 667 | AT132: 2088
AN133: =LOOKUP($AM$127,$AO$109:$AS$109,AO127:AS127) -> Italy | AO133: =LOOKUP($AM$110,$AN$111:$AN$115,AO128:AO132) -> 406 | AP133: =LOOKUP($AM$110,$AN$111:$AN$115,AP128:AP132) -> 203 | AQ133: =LOOKUP($AM$110,$AN$111:$AN$115,AQ128:AQ132) -> 406 | AR133: =LOOKUP($AM$110,$AN$111:$AN$115,AR128:AR132) -> 522 | AS133: =LOOKUP($AM$110,$AN$111:$AN$115,AS128:AS132) -> 551 | AT133: =LOOKUP($AM$110,$AN$111:$AN$115,AT128:AT132) -> 2088
AO135: 1 | AP135: 2 | AQ135: 3 | AR135: 4 | AS135: 5 | AT135: Total
AN136: =AN133 -> Italy | AO136: =AO133 -> 406 | AP136: 203 | AQ136: 406 | AR136: 522 | AS136: 551 | AT136: 2088
AN137: =LOOKUP($AM$127,$AO$135:$AS$135,AO136:AS136) -> 203

Sheet Q14_Q18
B2: National 4 Numeracy Practice
AN4: =ROUND(RAND()*(3-0)+0,0) -> 1 | AQ4: Under £3000 | AR4: Between £3000 - £5000 | AS4: Over £5000
B5: ="Q14. The table below shows the amount of yearly interest a selection of banks " -> Q14. The table below shows the amount of yearly interest a selection of banks | AP5: 1 | AQ5: 2 | AR5: 3 | AS5: 4
D6: will pay to a customer on savings. | AO6: 1 | AP6: A | AQ6: =ROUND(RAND()*(1.4-1)+1,1) -> 1.4 | AR6: =ROUND(RAND()*(1.8-1.5)+1.5,1) -> 1.8 | AS6: =ROUND(RAND()*(2.2-1.9)+1.9,1) -> 2
AO7: 2 | AP7: B | AQ7: =IF(AN4=0,AQ6+0.1,AQ6-0.1) -> 1.3 | AR7: =IF(AN4=0,AR6+0.1,AR6-0.1) -> 1.7 | AS7: =IF(AN4=0,AS6+0.1,AS6-0.1) -> 1.9
D8: Bank | H8: < £3000 | M8: Between £3000 - £5000 | X8: > £5000 | AO8: 3 | AP8: C | AQ8: =IF(AN4=2,AQ7+0.2,AQ7-0.2) -> 1.1 | AR8: =IF(AN4=2,AR7+0.2,AR7-0.2) -> 1.5 | AS8: =IF(AN4=2,AS7+0.2,AS7-0.2) -> 1.7
D9: A | H9: =AQ6&" %" -> 1.4 % | M9: =AR6&" %" -> 1.8 % | X9: =AS6&" %" -> 2 % | AO9: 4 | AP9: D | AQ9: =IF(AN4=3,AQ8+0.4,AQ8-0.4) -> 0.7 | AR9: =IF(AN4=3,AR8+0.4,AR8-0.4) -> 1.1 | AS9: =IF(AN4=3,AS8+0.4,AS8-0.4) -> 1.3
D10: B | H10: =AQ7&" %" -> 1.3 % | M10: =AR7&" %" -> 1.7 % | X10: =AS7&" %" -> 1.9 %
D11: C | H11: 1.1 % | M11: 1.5 % | X11: 1.7 %
D12: D | H12: 0.7 % | M12: 1.1 % | X12: 1.3 %
D14: ="For a savings amount of £"&AK14&" , which bank would pay the most interest ?" -> For a savings amount of £4010 , which bank would pay the most interest ? | AK14: =ROUND(RAND()*(860-250)+250,0)*10 -> 4010
L16: Bank | AK16: =IF(AN4=2,"C",IF(AN4=1,"A",IF(AN4=0,"B","D"))) -> A
B26: ="Q15. A school conducted a survey to establish the number of pupils " -> Q15. A school conducted a survey to establish the number of pupils
D27: ="who were wearing ties on one "&AQ38&" morning." -> who were wearing ties on one Tuesday morning.
D29: The compound bar chart below gives the results of the data collected.
AO33: =ROUND(RAND()*(5-1)+1,0) -> 2 | AP33: 1 | AQ33: Monday
AP34: 2 | AQ34: Tuesday
AP35: 3 | AQ35: Wednesday
AP36: 4 | AQ36: Thursday
AP37: 5 | AQ37: Friday
AQ38: =LOOKUP(AO33,AP33:AP37,AQ33:AQ37) -> Tuesday
AR44: Boys | AS44: Girls
AO45: =ROUND(RAND()*(6-1)+1,0) -> 1 | AP45: 1 | AQ45: S1 | AR45: =ROUND(RAND()*(80-60)+60,0) -> 79 | AS45: =ROUND(RAND()*(90-70)+70,0) -> 75
AP46: 2 | AQ46: S2 | AR46: =ROUND(RAND()*(70-50)+50,0) -> 56 | AS46: =ROUND(RAND()*(90-70)+70,0) -> 81
AP47: 3 | AQ47: S3 | AR47: =ROUND(RAND()*(55-40)+40,0) -> 52 | AS47: 74
C48: ="(a) How many "&AQ51&" "&AQ52&" wore ties that day ?" -> (a) How many S1 Girls wore ties that day ? | AA48: =" "&AQ52 -> Girls | AP48: 4 | AQ48: S4 | AR48: =ROUND(RAND()*(80-60)+60,0) -> 73 | AS48: 79
AP49: 5 | AQ49: S5 | AR49: 66 | AS49: 89
C50: (b) Compare the wearing of ties by both boys and girls across the year groups. | AP50: 6 | AQ50: S6 | AR50: 69 | AS50: 80
AQ51: =LOOKUP($AO$45,$AP$45:$AP$50,AQ45:AQ50) -> S1 | AR51: =LOOKUP($AO$45,$AP$45:$AP$50,AR45:AR50) -> 79 | AS51: 75
B52: ( Remember statement to include valid comparison for BOTH boys and girls ) | AO52: =ROUND(RAND()*(1-0)+0,0) -> 0 | AQ52: =IF(AO52=1,AR44,AS44) -> Girls | AR52: =IF(AO52=1,AR51,AS51) -> 75
AQ60: =ROUND(RAND()*(3-1)+1,0) -> 3 | AR60: Calls (minutes) | AS60: =ROUND(RAND()*(12-9)+9,0)*10 -> 100 | AT60: =ROUND(RAND()*(18-16)+16,0)*10 -> 160 | AU60: =ROUND(RAND()*(25-20)+20,0)*10 -> 220
B61: ="Q16. Three mobile phone companies each have a contract " -> Q16. Three mobile phone companies each have a contract | AR61: Texts | AS61: =ROUND(RAND()*(10-8)+8,0)*100 -> 900 | AT61: =ROUND(RAND()*(7-5)+5,0)*100 -> 500 | AU61: =ROUND(RAND()*(4-3)+3,0)*100 -> 300
D62: ="available at the same price." -> available at the same price. | S62: =ROUND(RAND()*(3.6-0.4)+0.4,1) -> 3.5 | AR62: Internet (Mb) | AS62: 500 | AT62: 750 | AU62: 1000
AS63: =AS60-ROUND(RAND()*(6-1)+1,0)*5 -> 70 | AT63: =AT60-ROUND(RAND()*(6-1)+1,0)*5 -> 135 | AU63: 200
D64: Company Plan | M64: A | R64: B | W64: C | AS64: =AS61-ROUND(RAND()*(19-1)+1,0)*5 -> 825 | AT64: =AT61-ROUND(RAND()*(15-1)+1,0)*5 -> 490 | AU64: =AU61-ROUND(RAND()*(20-1)+1,0)*5 -> 255
D65: =AR60 -> Calls (minutes) | M65: =AS60 -> 100 | R65: =AT60 -> 160 | W65: =AU60 -> 220 | AS65: =AS62-ROUND(RAND()*(40-1)+1,0)*5 -> 435 | AT65: =AT62-ROUND(RAND()*(40-1)+1,0)*5 -> 560 | AU65: =AU62-ROUND(RAND()*(40-1)+1,0)*5 -> 920
D66: =AR61 -> Texts | M66: =AS61 -> 900 | R66: =AT61 -> 500 | W66: =AU61 -> 300 | AR66: Question data | AS66: =IF(AQ60=1,AS63,IF(AQ60=2,AT63,AU63)) -> 200 | AT66: =IF(AQ60=1,AS64,IF(AQ60=2,AT64,AU64)) -> 255 | AU66: =IF(AQ60=1,AS65,IF(AQ60=2,AT65,AU65)) -> 920
D67: Internet (Mb) | M67: 500 | R67: 750 | W67: 1000
D70: Ainslie is looking for a mobile phone contract which will give her
D71: =AS66&" minutes of calls, "&AT66&" texts, and "&AU66&"Mb of internet use." -> 200 minutes of calls, 255 texts, and 920Mb of internet use.
D73: Which company’s plan would be best for her?
D74: Remember in exam give a reason for your answer.
M76: Company Plan | AK76: =IF(AQ60=1,"A",IF(AQ60=2,"B","C")) -> C
B86: ="Q17. Two drama clubs are to send representatives to a show. " -> Q17. Two drama clubs are to send representatives to a show. | AK86: =ROUND(RAND()*(2-1)+1,0) -> 2 | AM86: =ROUND(RAND()*(8-3)+3,0)*10 -> 40 | AN86: =AM86+10 -> 50
D87: The representatives are chosen at random. | AK87: =IF(AK86=1,AN86,AM86) -> 40 | AL87: =AK87/10*ROUND(RAND()*(5-2)+2,0) -> 16 | AM87: =AL87*100/AK87 -> 40
AK88: =IF(AK86=2,AN86,AM86) -> 50 | AL88: =AK88/10*ROUND(RAND()*(9-6)+6,0) -> 35 | AM88: =AL88*100/AK88 -> 70
D89: ="Club A has "&AL87&" tickets and has "&AM87&" members." -> Club A has 16 tickets and has 40 members.
D90: ="Club B has "&AL88&" tickets and has "&AM88&" members." -> Club B has 35 tickets and has 70 members.
D92: In which club does any one person have a better chance of being selected?
D93: Remember Justify your answer by calculation in exam.
V95: Club | AK95: =IF(AK86=1,"A","B") -> B
AK103: =ROUND(RAND()*(3-1)+1,0) -> 1 | AM103: =ROUND(RAND()*(7-5)+5,0)*10 -> 60 | AN103: =AM103+10 -> 70 | AO103: =AM103-10 -> 50
AK104: =IF($AK$103=1,$AM$103,IF($AK$103=2,$AN$103,$AO$103)) -> 60 | AL104: =AK104/10*ROUND(RAND()*(3-1)+1,0) -> 12 | AM104: =AL104*100/AK104 -> 20
B105: ="Q18. Three football teams play in the same town." -> Q18. Three football teams play in the same town. | AK105: =IF($AK$103=2,$AM$103,IF($AK$103=3,$AN$103,$AO$103)) -> 50 | AL105: =AK105/10*ROUND(RAND()*(6-4)+4,0) -> 30 | AM105: =AL105*100/AK105 -> 60
AK106: =IF($AK$103=3,$AM$103,IF($AK$103=1,$AN$103,$AO$103)) -> 70 | AL106: =AK106/10*ROUND(RAND()*(9-7)+7,0) -> 56 | AM106: 80
C107: ="Team A have won "&AL104&" out of their "&AM104&" games." -> Team A have won 12 out of their 20 games.
C108: ="Team B have won "&AL105&" out of their "&AM105&" games." -> Team B have won 30 out of their 60 games.
C109: ="Team C have won "&AL106&" out of their "&AM106&" games." -> Team C have won 56 out of their 80 games.
C111: Which team has the best winning record? | U111: Team | AK111: =IF(AK103=2,"A",IF(AK103=1,"C","B")) -> C
C113: Remember Justify your answer by calculation in exam.
